bitfinex-derivatives/quotes_SOLF0:USTF0_20241216
["timestamp","ask_amount","ask_price","bid_price","bid_amount"]
[1734365267854,4.0731,218.17,218.06,13.64319875]
[1734365268757,1.5331,218.17,218.06,13.64319875]
[1734365269453,2.54,218.18,218.09,11.10319875]
[1734365272357,2.54,218.18,218.06,2.54]
[1734365272559,2.54,218.18,218.06,13.64319875]
[1734365272853,2.54,218.18,218.09,11.10319875]
[1734365273060,11.10319875,218.22,218.09,11.10319875]
[1734365273061,2.54,218.21,218.09,11.10319875]
[1734365273359,11.10319875,218.22,218.09,11.10319875]
[1734365273560,2.54,218.21,218.09,11.10319875]
[1734365274650,13.64319875,218.22,218.09,11.10319875]
[1734365274851,3.0964,218.24,218.12,11.10319875]
[1734365275052,2.54,218.23,218.12,13.64319875]
[1734365275556,13.59452799,218.24,218.12,13.64319875]
[1734365279559,10.98128261,218.23,218.12,13.64319875]
[1734365279759,7.95812799,218.22,218.12,13.64319875]
[1734365280258,13.59452799,218.24,218.12,13.64319875]
[1734365280562,10.99366793,218.23,218.12,13.64319875]
[1734365280761,7.95812799,218.22,218.12,13.64319875]
[1734365282259,19.06132674,218.22,218.12,2.54]
[1734365282464,18.95179592,218.21,218.12,2.54]
[1734365282661,7.95812799,218.2,218.12,2.54]
[1734365282964,2.54,218.19,218.07,13.64319875]
[1734365283159,2.54,218.19,218.07,11.10319875]
[1734365283362,32.59499467,218.19,218.06,2.54]
[1734365283657,18.95179592,218.18,218.06,2.54]
[1734365283862,7.95812799,218.17,218.06,2.54]
[1734365284457,7.95812799,218.17,218.08,11.10319875]
[1734365285562,7.95812799,218.17,218.11,11.10319875]
[1734365285757,7.95812799,218.19,218.11,11.10319875]
[1734365285964,26.08500617,218.21,218.14,7.1039568]
[1734365286165,7.95812799,218.2,218.14,7.1039568]
[1734365286365,15.06208479,218.21,218.14,7.1039568]
[1734365286567,2.2916,218.2,218.14,7.1039568]
[1734365287165,2.2916,218.2,218.15,2.292]
[1734365287467,2.2917,218.19,218.15,2.292]
[1734365287862,10.24982799,218.19,218.15,2.292]
[1734365288061,7.95812799,218.18,218.15,2.292]
[1734365288260,2.2917,218.19,218.14,2.2922]
[1734365288661,7.95812799,218.19,218.14,2.2922]
[1734365288864,11.10063672,218.2,218.11,2.2924]
[1734365289065,11.10063672,218.17,218.05,16.70610636]
[1734365289267,7.95812799,218.16,218.06,2.54]
[1734365289465,2.2923,218.13,218.08,2.2928]
[1734365289876,18.98407089,218.15,218.06,2.54]
[1734365290070,7.95812799,218.14,218.05,11.10063672]
[1734365290268,7.95812799,218.14,218.03,2.54]
[1734365290469,18.98497275,218.16,218.02,11.10063672]
[1734365290764,7.95812799,218.15,218.02,11.10063672]
[1734365290964,10.96702799,218.15,218.02,11.10063672]
[1734365291171,22.12748148,218.14,218.04,5.62621628]
[1734365291465,7.95812799,218.13,218.04,5.62621628]
[1734365291861,7.95812799,218.13,218.07,2.2929]
[1734365291862,2.2925,218.12,218.07,2.2929]
[1734365292371,2.2925,218.11,218.07,2.2929]
[1734365292574,7.95812799,218.13,218.07,2.2929]
[1734365292982,18.98397737,218.13,218.07,2.2929]
[1734365293184,7.95812799,218.12,218.07,2.2929]
[1734365293476,10.25062799,218.12,218.07,2.2929]
[1734365293871,7.95812799,218.11,218.07,2.2929]
[1734365294076,7.95812799,218.13,218.09,2.2927]
[1734365294674,2.2922,218.14,218.09,2.2927]
[1734365295372,18.98099542,218.14,218.05,11.10063672]
[1734365295577,7.95812799,218.13,218.05,11.10063672]
[1734365295875,3.0089,218.15,218.11,2.2925]
[1734365296375,11.02611899,218.15,218.11,2.2925]
[1734365296685,3.0089,218.15,218.11,2.2925]
[1734365296872,3.0089,218.15,218.06,2.54]
[1734365297377,3.0089,218.15,218.05,11.10063672]
[1734365297680,2.2923,218.14,218.09,2.2927]
[1734365297875,10.30922154,218.14,218.09,2.2927]
[1734365298080,3.0089,218.15,218.05,13.64063672]
[1734365298376,11.02653752,218.15,218.05,13.64063672]
[1734365298582,3.0089,218.15,218.05,13.64063672]
[1734365299172,11.02617771,218.15,218.05,13.64063672]
[1734365299376,13.78,218.3,218.05,13.64063672]
[1734365299577,11.10063672,218.2,218.08,11.10063672]
[1734365299774,8.01658298,218.19,218.08,11.10063672]
[1734365299980,19.03695503,218.19,218.08,11.10063672]
[1734365300179,8.01658298,218.18,218.08,11.10063672]
[1734365300379,19.03715337,218.19,218.08,11.10063672]
[1734365300572,8.01658298,218.18,218.08,11.10063672]
[1734365300772,13.39223672,218.2,218.08,11.10063672]
[1734365300773,8.01658298,218.19,218.08,11.10063672]
[1734365300978,19.03654025,218.19,218.15,2.292]
[1734365301181,8.01658298,218.18,218.15,2.292]
[1734365301383,8.01658298,218.19,218.1,2.54]
[1734365301582,2.54,218.21,218.1,2.54]
[1734365301583,8.01658298,218.2,218.1,2.54]
[1734365301876,4.8315,218.21,218.1,2.54]
[1734365302285,2.2916,218.2,218.1,2.54]
[1734365302580,10.30818298,218.2,218.08,11.10063672]
[1734365302781,2.2916,218.2,218.16,2.292]
[1734365303380,2.2916,218.2,218.15,2.2921]
[1734365303772,8.01488485,218.21,218.11,2.54]
[1734365303980,19.03239637,218.22,218.11,13.64063672]
[1734365304182,8.01488485,218.21,218.11,13.64063672]
[1734365304382,2.2917,218.2,218.14,2.2922]
[1734365304583,8.01488485,218.21,218.09,2.54]
[1734365304584,19.11552157,218.21,218.09,2.54]
[1734365304780,19.03176859,218.2,218.09,2.54]
[1734365304980,10.30658485,218.19,218.14,2.2921]
[1734365305180,8.01488485,218.19,218.08,13.64063672]
[1734365305482,8.01488485,218.2,218.11,11.10063672]
[1734365305678,11.0163415,218.22,218.11,11.10063672]
[1734365305874,8.01488485,218.21,218.11,11.10063672]
[1734365306184,11.0163415,218.23,218.14,11.10063672]
[1734365306381,2.54,218.25,218.14,13.64063672]
[1734365306576,19.0241767,218.26,218.14,13.64063672]
[1734365306876,8.01115217,218.25,218.17,11.10063672]
[1734365307278,1.5553,218.27,218.17,11.10063672]
[1734365307279,8.01115217,218.26,218.17,11.10063672]
[1734365307784,20.49572124,218.29,218.17,11.10063672]
[1734365307985,10.30185217,218.28,218.23,2.2912]
[1734365308383,19.0223068,218.27,218.23,2.2912]
[1734365308685,3.7646,218.29,218.23,2.2912]
[1734365308885,20.48894824,218.29,218.23,2.2912]
[1734365309087,8.00724088,218.28,218.23,2.2912]
[1734365309580,11.10063672,218.27,218.2,2.2915]
[1734365309787,10.29824088,218.26,218.17,5.48745775]
[1734365309989,7.10110154,218.24,218.18,7.10110154]
[1734365310579,7.10110154,218.25,218.18,7.10110154]
[1734365310780,7.10110154,218.25,218.17,5.48745775]
[1734365310984,7.10110154,218.25,218.18,7.10110154]
[1734365311786,7.10110154,218.25,218.21,2.2913]
[1734365312380,7.10110154,218.25,218.22,2.2913]
[1734365312786,15.10531618,218.25,218.22,2.2913]
[1734365313088,7.10110154,218.25,218.22,2.2913]
[1734365315186,7.10110154,218.23,218.22,2.2913]
[1734365315887,8.00169422,218.28,218.24,2.2911]
[1734365316088,8.00051467,218.28,218.24,2.2911]
[1734365316283,21.28966239,218.28,218.23,2.2912]
[1734365316485,8.00051467,218.27,218.17,5.48745775]
[1734365316690,8.00051467,218.28,218.17,5.48745775]
[1734365316892,11.76511467,218.29,218.24,2.2911]
[1734365317091,7.10110154,218.27,218.24,2.2911]
[1734365317983,8.00051467,218.28,218.24,7.10110154]
[1734365318182,8.00051467,218.31,218.24,7.10110154]
[1734365318382,10.99456809,218.31,218.24,7.10110154]
[1734365318585,8.00051467,218.3,218.24,7.10110154]
[1734365318781,8.64810154,218.32,218.24,7.10110154]
[1734365318996,24.37741713,218.35,218.24,7.10110154]
[1734365319289,8.00051467,218.34,218.24,7.10110154]
[1734365319494,7.10110154,218.31,218.24,7.10110154]
[1734365320189,18.99150371,218.34,218.24,7.10110154]
[1734365320493,7.10110154,218.32,218.26,7.10110154]
[1734365320893,7.10110154,218.32,218.29,2.2905]
[1734365321796,7.10110154,218.33,218.3,2.2905]
[1734365322290,3.9049,218.38,218.3,7.10110154]
[1734365322494,7.10110154,218.36,218.3,7.10110154]
[1734365323195,7.10110154,218.36,218.33,2.2902]
[1734365323399,7.10110154,218.36,218.3,7.10110154]
[1734365323592,7.10110154,218.36,218.32,2.2902]
[1734365325395,7.10110154,218.34,218.26,2.54]
[1734365325695,7.10110154,218.3,218.25,2.52]
[1734365326002,7.10110154,218.3,218.24,9.62110154]
[1734365326196,7.10110154,218.28,218.22,7.10110154]
[1734365327503,7.10110154,218.28,218.24,7.10110154]
[1734365327700,7.97562379,218.34,218.24,7.10110154]
[1734365328002,7.10110154,218.31,218.24,7.10110154]
[1734365328704,7.10110154,218.31,218.27,2.2907]
[1734365328997,7.97484838,218.34,218.2,2.52]
[1734365328998,7.10110154,218.29,218.2,2.52]
[1734365329204,7.10110154,218.29,218.25,2.2909]
[1734365329803,7.10110154,218.29,218.26,2.2909]
[1734365330005,7.10110154,218.29,218.23,7.10110154]
[1734365330301,2.2905,218.31,218.23,7.10110154]
[1734365330510,7.10110154,218.3,218.23,7.10110154]
[1734365331206,7.10110154,218.3,218.2,2.52]
[1734365331405,7.10110154,218.3,218.27,2.2907]
[1734365331807,7.10110154,218.3,218.2,2.52]
[1734365332106,2.52,218.36,218.26,7.10110154]
[1734365332307,7.10110154,218.34,218.28,7.10110154]
[1734365332504,7.97298149,218.35,218.28,7.10110154]
[1734365332704,7.10110154,218.34,218.28,7.10110154]
[1734365333207,7.10110154,218.35,218.32,2.2902]
[1734365333901,4.1352,218.38,218.32,2.2902]
[1734365333902,11.00600154,218.38,218.33,2.2902]
[1734365334203,11.00600154,218.38,218.32,7.10110154]
[1734365334204,8.71630154,218.38,218.32,7.10110154]
[1734365334404,11.00600154,218.38,218.32,9.39130154]
[1734365334706,11.00600154,218.38,218.32,7.10110154]
[1734365334904,11.00600154,218.38,218.3,2.52]
[1734365335108,11.00600154,218.38,218.32,7.10110154]
[1734365335602,1.6152,218.38,218.32,7.10110154]
[1734365335810,8.71630154,218.38,218.32,7.10110154]
[1734365336503,1.6152,218.38,218.34,2.2901]
[1734365336709,8.71630154,218.38,218.34,2.2901]
[1734365337607,1.6152,218.38,218.34,2.2901]
[1734365338009,7.10110154,218.37,218.3,2.52]
[1734365338210,7.10110154,218.37,218.33,2.2902]
[1734365339106,1.6152,218.38,218.34,2.29]
[1734365339305,8.71630154,218.38,218.34,2.29]
[1734365340012,8.71630154,218.38,218.33,2.2901]
[1734365340311,7.10110154,218.34,218.28,5.46464414]
[1734365340509,7.10110154,218.34,218.3,2.2905]
[1734365342006,7.10110154,218.35,218.29,7.10110154]
[1734365342207,7.10110154,218.37,218.29,7.10110154]
[1734365342506,1.6152,218.38,218.31,7.10110154]
[1734365343408,7.10110154,218.37,218.33,2.2902]
[1734365344513,7.10110154,218.37,218.34,2.2901]
[1734365345013,7.10110154,218.37,218.31,7.10110154]
[1734365345607,7.10110154,218.37,218.33,2.2901]
[1734365345811,7.10110154,218.35,218.28,5.46464414]
[1734365346008,7.10110154,218.31,218.26,2.52]
[1734365346207,7.98302737,218.36,218.26,2.52]
[1734365346506,7.10110154,218.33,218.27,7.10110154]
[1734365346906,7.10110154,218.33,218.28,2.2906]
[1734365347206,7.10110154,218.33,218.27,12.71833343]
[1734365347614,7.10110154,218.33,218.29,2.2905]
[1734365347817,7.10110154,218.31,218.25,2.52]
[1734365348010,9.39150154,218.31,218.27,2.2908]
[1734365348814,9.39150154,218.31,218.26,2.2909]
[1734365349110,7.10110154,218.29,218.23,7.10110154]
[1734365349713,9.39170154,218.29,218.23,7.10110154]
[1734365349913,10.91430154,218.29,218.23,7.10110154]
[1734365350213,10.91430154,218.29,218.25,2.2909]
[1734365350416,3.8132,218.29,218.25,2.2909]
[1734365350618,1.5226,218.29,218.25,7.10110154]
[1734365350814,7.10110154,218.36,218.27,7.10110154]
[1734365351009,16.62023387,218.36,218.29,7.10110154]
[1734365351213,7.99653233,218.35,218.29,7.10110154]
[1734365351412,13.28527688,218.35,218.3,2.2904]
[1734365351614,7.10110154,218.34,218.3,2.2904]
[1734365351815,9.39120154,218.34,218.29,2.2906]
[1734365352419,17.38936225,218.34,218.29,2.2906]
[1734365352619,9.39120154,218.34,218.29,2.2906]
[1734365352914,9.39150154,218.32,218.26,2.2908]
[1734365353220,9.39150154,218.32,218.26,7.10110154]
[1734365353911,17.39108986,218.32,218.27,2.2907]
[1734365354115,9.39150154,218.32,218.27,2.2907]
[1734365354318,7.10110154,218.32,218.27,2.2907]
[1734365355020,26.10204564,218.32,218.27,2.2907]
[1734365355215,8.00147783,218.31,218.28,2.2907]
[1734365355519,7.10110154,218.32,218.28,2.2907]
[1734365355716,8.00147783,218.31,218.3,2.2905]
[1734365356020,19.00385558,218.34,218.28,7.10110154]
[1734365356223,8.00147783,218.33,218.28,7.10110154]
[1734365356421,8.00147783,218.33,218.31,2.2903]
[1734365356720,19.00510078,218.35,218.3,7.10110154]
[1734365356921,8.00147783,218.34,218.32,2.2903]
[1734365357117,20.52768629,218.36,218.32,2.2903]
[1734365357319,19.00647468,218.35,218.32,2.2903]
[1734365357519,1.5226,218.36,218.32,2.2903]
[1734365357716,9.52785429,218.36,218.32,2.2903]
[1734365357916,8.00525429,218.35,218.32,2.2903]
[1734365358121,20.53299428,218.36,218.32,2.2903]
[1734365358318,8.00608914,218.35,218.32,2.2903]
[1734365358518,9.52868914,218.36,218.32,2.2903]
[1734365359322,9.52868914,218.36,218.32,2.2902]
[1734365359819,9.52868914,218.36,218.27,2.52]
[1734365360019,11.81858914,218.36,218.31,2.2904]
[1734365360216,9.52868914,218.36,218.3,7.10110154]
[1734365360417,9.52868914,218.36,218.32,7.10110154]
[1734365361428,9.52868914,218.36,218.32,9.39140154]
[1734365361623,9.52868914,218.36,218.32,2.2903]
[1734365361926,20.54163821,218.36,218.32,2.2903]
[1734365362226,8.00608914,218.35,218.32,2.2903]
[1734365362729,8.00608914,218.35,218.32,9.39140154]
[1734365363023,9.39120154,218.34,218.29,2.2906]
[1734365363221,7.10110154,218.32,218.27,7.10110154]
[1734365363426,7.10110154,218.32,218.25,2.52]
[1734365363427,7.10110154,218.32,218.25,9.62110154]
[1734365363825,17.39759068,218.32,218.26,2.2909]
[1734365364030,8.00608914,218.31,218.26,2.2909]
[1734365364226,9.39150154,218.32,218.25,7.10110154]
[1734365364430,26.12601403,218.32,218.25,7.10110154]
[1734365364628,8.00608914,218.31,218.25,7.10110154]
[1734365364928,15.10719068,218.32,218.25,7.10110154]
[1734365365237,17.39749068,218.32,218.27,2.2907]
[1734365366031,17.39749068,218.32,218.28,2.2907]
[1734365366334,8.00608914,218.32,218.27,7.10110154]
[1734365366533,10.52608914,218.33,218.29,2.2906]
[1734365366736,10.52608914,218.33,218.27,7.10110154]
[1734365366936,12.81628914,218.33,218.27,7.10110154]
[1734365367936,9.39140154,218.32,218.27,7.10110154]
[1734365368136,28.41785055,218.32,218.27,7.10110154]
[1734365368334,8.00608914,218.31,218.27,7.10110154]
[1734365368538,9.62110154,218.33,218.29,2.2905]
[1734365368732,8.01609066,218.32,218.29,2.2905]
[1734365368939,8.01609066,218.32,218.27,7.10110154]
[1734365369334,8.01609066,218.32,218.28,2.2906]
[1734365369635,8.01609066,218.32,218.27,7.10110154]
[1734365370035,8.01609066,218.32,218.29,2.2905]
[1734365370231,8.01609066,218.32,218.27,7.10110154]
[1734365370435,2.52,218.33,218.27,7.10110154]
[1734365370635,9.39120154,218.34,218.3,2.2904]
[1734365370837,19.035876,218.35,218.29,7.10110154]
[1734365371038,8.01609066,218.34,218.31,7.10110154]
[1734365371441,8.01609066,218.35,218.29,7.10110154]
[1734365371741,8.01609066,218.35,218.3,2.2904]
[1734365371942,8.01609066,218.35,218.29,7.10110154]
[1734365372341,8.01609066,218.35,218.32,2.2902]
[1734365372542,16.6397922,218.36,218.32,2.2902]
[1734365373147,16.6397922,218.36,218.31,9.39150154]
[1734365373340,9.53869066,218.36,218.31,7.10110154]
[1734365373545,8.01609066,218.35,218.31,7.10110154]
[1734365373748,12.54448803,218.36,218.32,2.2902]
[1734365373936,15.1171922,218.35,218.27,2.52]
[1734365374140,7.10110154,218.33,218.27,9.62110154]
[1734365374639,7.10110154,218.33,218.3,2.2904]
[1734365374846,7.10110154,218.33,218.24,2.52]
[1734365375038,7.10110154,218.33,218.29,2.2906]
[1734365375443,15.11967973,218.33,218.23,7.8909125]
[1734365375747,7.10110154,218.31,218.27,2.2908]
[1734365376041,15.11967973,218.31,218.27,2.2908]
[1734365376243,7.10110154,218.31,218.28,2.2907]
[1734365376643,8.02110503,218.32,218.27,7.10110154]
[1734365376838,11.02689286,218.32,218.27,7.10110154]
[1734365377142,8.02110503,218.32,218.27,7.10110154]
[1734365377343,19.05120954,218.32,218.31,2.2904]
[1734365377541,8.02110503,218.32,218.31,2.2904]
[1734365378143,9.62110154,218.33,218.31,2.2904]
[1734365378447,8.02305011,218.32,218.31,2.2904]
[1734365378942,2.52,218.33,218.31,2.2904]
[1734365381139,2.52,218.33,218.29,7.10110154]
[1734365381343,2.52,218.33,218.32,2.2903]
[1734365381548,8.02305011,218.34,218.32,2.2903]
[1734365382745,7.10110154,218.35,218.32,2.2903]
[1734365382955,20.42190525,218.35,218.29,7.10110154]
[1734365383146,19.05385382,218.34,218.29,7.10110154]
[1734365383441,8.02305011,218.33,218.29,7.10110154]
[1734365384048,8.02305011,218.33,218.31,2.2904]
[1734365384240,11.03162628,218.34,218.31,2.2904]
[1734365384443,8.02305011,218.33,218.31,2.2904]
[1734365384845,8.02305011,218.33,218.24,2.52]
[1734365385148,8.02305011,218.33,218.29,2.2905]
[1734365385346,8.02305011,218.33,218.28,7.10110154]
[1734365385550,9.62110154,218.35,218.31,2.2903]
[1734365385850,8.02502804,218.34,218.31,2.2903]
[1734365386349,19.05741375,218.34,218.31,2.2903]
[1734365386645,8.02502804,218.33,218.3,2.2905]
[1734365386850,19.05804009,218.34,218.3,2.2905]
[1734365387152,10.31522804,218.33,218.29,2.2906]
[1734365387352,8.02502804,218.33,218.29,2.2906]
[1734365387553,19.05877959,218.34,218.3,7.10110154]
[1734365387748,8.02502804,218.33,218.31,2.2904]
[1734365388050,15.12612958,218.33,218.18,4.5833]
[1734365388249,7.10110154,218.27,218.22,7.10110154]
[1734365389151,9.59182804,218.28,218.24,7.10110154]
[1734365389453,1.5668,218.28,218.24,7.10110154]
[1734365389654,1.5668,218.28,218.26,2.2909]
[1734365390845,9.59250793,218.28,218.26,2.2909]
[1734365391054,1.5668,218.28,218.26,2.2909]
[1734365392259,9.59276832,218.28,218.26,2.2909]
[1734365392457,1.5668,218.28,218.26,2.2909]
[1734365392654,8.02440182,218.29,218.26,7.10110154]
[1734365392856,26.15557846,218.34,218.28,7.10110154]
[1734365393057,26.15557846,218.34,218.29,2.2905]
[1734365393058,19.05447692,218.33,218.29,2.2905]
[1734365393262,8.02440182,218.32,218.29,2.2905]
[1734365393961,8.02440182,218.32,218.26,7.10110154]
[1734365394859,15.12550336,218.32,218.22,2.52]
[1734365395055,18.13117664,218.31,218.24,7.10110154]
[1734365395252,8.02440182,218.3,218.24,7.10110154]
[1734365395460,8.02440182,218.3,218.26,7.10110154]
[1734365395766,19.05535994,218.32,218.26,7.10110154]
[1734365395962,8.02440182,218.31,218.26,7.10110154]
[1734365396161,19.05528269,218.32,218.26,7.10110154]
[1734365396464,8.02440182,218.31,218.26,7.10110154]
[1734365396861,19.05536682,218.32,218.26,7.10110154]
[1734365397161,8.02440182,218.31,218.28,2.2906]
[1734365397866,7.10110154,218.33,218.26,7.10110154]
[1734365398165,7.10110154,218.33,218.28,7.10110154]
[1734365398365,8.02373859,218.33,218.28,7.10110154]
[1734365398668,19.05444599,218.34,218.3,2.2904]
[1734365398865,8.02373859,218.33,218.3,2.2904]
[1734365399771,8.02373859,218.34,218.3,2.2904]
[1734365399966,7.10110154,218.33,218.29,2.2906]
[1734365400765,9.39130154,218.33,218.29,2.2906]
[1734365401475,9.39130154,218.33,218.28,2.2907]
[1734365401668,20.42361168,218.33,218.28,2.2907]
[1734365401869,8.02373859,218.32,218.28,2.2907]
[1734365402069,9.39130154,218.33,218.28,2.2907]
[1734365402368,7.10110154,218.33,218.26,7.10110154]
[1734365402574,7.10110154,218.33,218.29,2.2906]
[1734365402874,15.12484013,218.34,218.28,7.10110154]
[1734365403081,8.02373859,218.34,218.28,7.10110154]
[1734365403372,8.02373859,218.34,218.3,7.10110154]
[1734365403373,19.05546199,218.34,218.3,7.10110154]
[1734365403569,1.5226,218.36,218.32,2.2902]
[1734365404671,20.57799256,218.36,218.32,2.2902]
[1734365404872,8.02418397,218.35,218.32,2.2902]
[1734365405170,8.02418397,218.35,218.32,7.10110154]
[1734365405375,7.57493993,218.36,218.34,7.10110154]
[1734365405582,7.57493993,218.38,218.34,7.10110154]
[1734365405876,1.4876,218.42,218.37,7.10110154]
[1734365406374,1.4876,218.42,218.39,2.2895]
[1734365407174,3.1618,218.47,218.43,2.2891]
[1734365407376,3.1618,218.47,218.43,9.39020154]
[1734365407681,3.1618,218.47,218.43,2.2891]
[1734365408471,3.1618,218.47,218.41,7.10110154]
[1734365408472,7.10110154,218.44,218.33,2.52]
[1734365408681,7.10110154,218.44,218.38,7.10110154]
[1734365408880,7.10110154,218.44,218.33,2.52]
[1734365409079,7.10110154,218.44,218.39,9.39050154]
[1734365409379,7.10110154,218.44,218.37,7.10110154]
[1734365409579,7.10110154,218.42,218.37,2.2897]
[1734365409974,7.10110154,218.42,218.33,2.52]
[1734365410178,7.10110154,218.42,218.35,7.10110154]
[1734365410484,14.66522884,218.43,218.37,7.10110154]
[1734365410682,7.10110154,218.41,218.35,7.10110154]
[1734365411179,7.10110154,218.41,218.37,2.2897]
[1734365412384,7.10110154,218.41,218.38,2.2896]
[1734365412679,7.10110154,218.39,218.3,8.09027698]
[1734365412883,7.10110154,218.37,218.34,2.29]
[1734365413276,7.10110154,218.37,218.32,7.10110154]
[1734365413481,7.10110154,218.37,218.32,2.2902]
[1734365413679,9.39090154,218.37,218.32,2.2902]
[1734365413881,10.5930144,218.42,218.33,7.10110154]
[1734365414076,7.10110154,218.39,218.33,7.10110154]
[1734365414278,7.10110154,218.39,218.35,2.2899]
[1734365414587,2.52,218.44,218.35,7.10110154]
[1734365414588,7.10110154,218.41,218.35,7.10110154]
[1734365415780,7.10110154,218.41,218.38,2.2896]
[1734365416181,2.52,218.53,218.4,7.10110154]
[1734365416489,7.10110154,218.46,218.38,2.52]
[1734365416687,7.10110154,218.46,218.39,7.10110154]
[1734365416880,7.10110154,218.46,218.41,2.2893]
[1734365417083,7.10110154,218.44,218.41,2.2893]
[1734365417279,1.5566,218.5,218.38,2.52]
[1734365417481,7.10110154,218.48,218.4,7.10110154]
[1734365418084,2.52,218.51,218.42,7.10110154]
[1734365418289,7.10110154,218.48,218.42,7.10110154]
[1734365418791,7.10110154,218.48,218.43,2.289]
[1734365418993,7.10110154,218.48,218.42,7.10110154]
[1734365419288,7.54431675,218.5,218.44,2.289]
[1734365419488,7.10110154,218.48,218.42,7.10110154]
[1734365419689,7.54431675,218.51,218.42,7.10110154]
[1734365419890,18.11637066,218.52,218.44,7.10110154]
[1734365420089,7.10110154,218.5,218.43,9.62110154]
[1734365420489,7.10110154,218.5,218.45,2.2888]
[1734365421391,7.10110154,218.5,218.46,2.2888]
[1734365421585,7.10110154,218.5,218.31,4.5807]
[1734365421586,7.10110154,218.47,218.31,4.5807]
[1734365421787,7.10110154,218.45,218.38,7.10110154]
[1734365421992,7.10110154,218.45,218.44,2.289]
[1734365422493,3.7518,218.49,218.4,7.10110154]
[1734365422494,1.4633,218.49,218.4,7.10110154]
[1734365422995,7.10110154,218.46,218.44,2.289]
[1734365423999,7.10110154,218.46,218.42,2.2891]
[1734365424492,7.10110154,218.47,218.43,2.2891]
[1734365424888,7.10110154,218.45,218.43,2.2891]
[1734365425089,1.4633,218.49,218.45,2.2889]
[1734365425395,7.10110154,218.48,218.45,2.2889]
[1734365426894,7.10110154,218.48,218.46,2.2888]
[1734365427292,7.10110154,218.48,218.42,7.10110154]
[1734365427487,7.10110154,218.45,218.36,2.52]
[1734365427697,7.10110154,218.44,218.38,7.10110154]
[1734365428099,7.10110154,218.44,218.42,2.2892]
[1734365428597,7.10110154,218.44,218.41,2.2893]
[1734365428795,7.10110154,218.44,218.32,1.5601]
[1734365428990,7.10110154,218.44,218.37,7.10110154]
[1734365429393,7.10110154,218.44,218.39,2.2896]
[1734365430089,7.10110154,218.44,218.37,7.10110154]
[1734365430291,7.10110154,218.42,218.34,7.10110154]
[1734365430798,9.39030154,218.42,218.36,2.2898]
[1734365431097,9.39030154,218.42,218.34,7.10110154]
[1734365431905,2.52,218.44,218.36,7.10110154]
[1734365432101,7.10110154,218.43,218.31,2.52]
[1734365432398,9.62110154,218.44,218.38,7.10110154]
[1734365432796,11.91010154,218.44,218.39,2.2895]
[1734365432997,9.62110154,218.44,218.31,2.52]
[1734365433199,7.10110154,218.42,218.36,7.10110154]
[1734365433497,7.10110154,218.42,218.38,2.2897]
[1734365434897,7.10110154,218.42,218.31,2.52]
[1734365435199,7.10110154,218.41,218.34,7.10110154]
[1734365435503,7.10110154,218.41,218.36,7.10110154]
[1734365435999,7.10110154,218.41,218.32,2.52]
[1734365436200,7.10110154,218.41,218.35,7.10110154]
[1734365436497,7.10110154,218.41,218.37,2.2898]
[1734365436895,7.10110154,218.41,218.35,7.10110154]
[1734365437100,7.10110154,218.41,218.38,2.2896]
[1734365438394,7.10110154,218.41,218.35,7.10110154]
[1734365438596,7.10110154,218.41,218.39,2.2895]
[1734365439000,2.52,218.44,218.39,2.2895]
[1734365439303,2.52,218.44,218.4,2.2894]
[1734365439502,7.10110154,218.43,218.4,2.2894]
[1734365441699,2.52,218.46,218.39,2.2895]
[1734365442003,2.52,218.46,218.37,7.10110154]
[1734365442004,7.10110154,218.44,218.37,7.10110154]
[1734365442497,2.52,218.46,218.39,7.10110154]
[1734365442693,7.10110154,218.45,218.39,7.10110154]
[1734365443097,7.10110154,218.45,218.43,2.2891]
[1734365443505,7.10110154,218.45,218.39,7.10110154]
[1734365443796,7.10110154,218.45,218.44,2.289]
[1734365445601,1.4633,218.49,218.43,7.10110154]
[1734365445795,8.56440154,218.49,218.43,7.10110154]
[1734365446202,8.56440154,218.49,218.46,2.2888]
[1734365446498,7.10110154,218.47,218.41,7.10110154]
[1734365447205,8.56440154,218.49,218.43,7.10110154]
[1734365447394,8.56440154,218.49,218.46,2.2888]
[1734365448198,7.10110154,218.47,218.37,2.52]
[1734365448505,7.10110154,218.45,218.39,7.10110154]
[1734365449411,7.10110154,218.45,218.43,2.2891]
[1734365449707,7.10110154,218.45,218.39,7.10110154]
[1734365450004,1.4633,218.49,218.37,2.52]
[1734365450205,7.10110154,218.47,218.41,7.10110154]
[1734365451604,7.55721887,218.48,218.41,7.10110154]
[1734365451807,7.10110154,218.47,218.41,7.10110154]